fUSD/lending_fUSD_20241018
["ID","MTS","AMOUNT","RATE_DAILY","PERIOD"]
[340436074,1729241492947,-50000.0,0.00053,120]
[340436075,1729241492956,-8618.87605667,0.00053089,60]
[340436076,1729241492966,-151.0,0.00053096,120]
[340436077,1729241492977,-1556.65,0.00053145,120]
[340436078,1729241492986,-2337.77232177,0.00053287,120]
[340436079,1729241492996,-442.14335865,0.0005331,2]
[340436080,1729241493006,-151.0,0.00053644,120]
[340436081,1729241493016,-50000.0,0.000537,120]
[340436082,1729241493025,-15000.0,0.0005378,30]
[340436083,1729241493035,-1285.0,0.000538,120]
[340436084,1729241493045,-5000.0,0.0005387,120]
[340436085,1729241493054,-264.5896006,0.000539,30]
[340436086,1729241493063,-50000.0,0.00054,54]
[340436087,1729241493073,-50000.0,0.00054,64]
[340436088,1729241493082,-300.0,0.00054,120]
[340436089,1729241493091,-15968.0,0.00054,120]
[340436090,1729241493100,-150.0,0.00054,120]
[340436091,1729241493109,-17849.49013587,0.00054,120]
[340436092,1729241493119,-43844.89712917,0.00054,120]
[340436093,1729241493128,-3165.5026587,0.00054,120]
[340436094,1729241493137,-20000.0,0.00054,120]
[340436095,1729241493147,-20000.0,0.00054,30]
[340436096,1729241493156,-5000.0,0.00054,120]
[340436097,1729241493165,-15283.0,0.00054,30]
[340436098,1729241493174,-50000.0,0.00054,120]
[340436099,1729241493184,-200.0,0.00054136,120]
[340436100,1729241493194,-151.0,0.00054192,120]
[340436101,1729241493203,-454.0,0.00054247,2]
[340436102,1729241493212,-493.0,0.00054247,2]
[340436103,1729241493222,-593.0,0.00054247,2]
[340436104,1729241493231,-300.0,0.000544,120]
[340436105,1729241493240,-5000.0,0.0005445,120]
[340436106,1729241493250,-151.0,0.00054521,120]
[340436107,1729241493259,-6401.38091648,0.00054589,90]
[340436108,1729241493268,-5000.0,0.0005465,120]
[340436109,1729241493278,-50000.0,0.000547,120]
[340436110,1729241493288,-151.0,0.0005474,120]
[340436111,1729241493298,-150.0,0.0005475,40]
[340436112,1729241493308,-190.1175,0.00054794,120]
[340436113,1729241493317,-500.0,0.00054794,2]
[340436114,1729241493327,-500.0,0.00054794,2]
[340436115,1729241493337,-500.0,0.00054794,2]
[340436116,1729241493346,-500.0,0.00054794,2]
[340436117,1729241493360,-500.0,0.00054794,2]
[340436118,1729241493370,-500.0,0.00054794,2]
[340436119,1729241493379,-500.0,0.00054794,2]
[340436120,1729241493389,-500.0,0.00054794,2]
[340436121,1729241493398,-500.0,0.00054794,2]
[340436122,1729241493407,-500.0,0.00054794,2]
[340436123,1729241493417,-437.93007872,0.00054794,2]
[340436124,1729241493426,-600.0,0.00054795,26]
[340436125,1729241493436,-2000.0,0.000548,30]
[340436126,1729241493448,-6099.53768851,0.000549,120]
[340436127,1729241493458,-1000.0,0.00054999,120]
[340436128,1729241493468,-50000.0,0.00055,55]
[340436129,1729241493478,-50000.0,0.00055,65]
[340436130,1729241493487,-13189.1517992,0.00055,120]
[340436131,1729241493496,-12500.53839392,0.00055,5]
[340436132,1729241493506,-3600.0,0.00055,120]
[340436133,1729241493515,-208.23555492,0.00055,120]
[340436134,1729241493524,-150.0,0.00055,120]
[340436135,1729241493534,-300.0,0.00055,120]
[340436136,1729241493543,-3474.0,0.00055,120]
[340436137,1729241493557,-5000.0,0.00055,120]
[340436138,1729241493567,-83590.0,0.00055,15]
[340436139,1729241493576,-50525.12119237,0.00055,30]
[340436140,1729241493585,-175.47941376,0.00055,120]
[340436141,1729241493595,-500.0,0.00055,120]
[340436142,1729241493607,-50000.0,0.00055,120]
[340436143,1729241493616,-251.143194,0.00055,100]
[340436144,1729241493626,-151.0,0.00055288,120]
[340436145,1729241493635,-3000.0,0.000553,90]
[340436146,1729241493645,-725.89,0.00055616,120]
[340436147,1729241493654,-368.55,0.00055616,120]
[340436148,1729241493664,-471.74301128,0.00055617,2]
[340436149,1729241493677,-507.29269951,0.00055617,2]
[340436150,1729241493687,-596.49216858,0.00055617,2]
[340436151,1729241493696,-50000.0,0.000557,120]
[340436152,1729241493706,-1556.65,0.00055729,120]
[340436153,1729241493716,-151.0,0.00055836,120]
[340436154,1729241493725,-1000.0,0.00055999,120]
[340436155,1729241493735,-580.0,0.00056,14]
[340436156,1729241493745,-150.0,0.00056,120]
[340436157,1729241493754,-300.0,0.00056,120]
[340436158,1729241493763,-50000.0,0.00056,120]
[340436159,1729241493772,-50000.0,0.00056,120]
[340436160,1729241493781,-380.235,0.00056164,120]
[340436161,1729241493791,-151.0,0.00056384,120]
[340436162,1729241493801,-50000.0,0.000567,120]
[340436163,1729241493811,-5227.92707761,0.00056789,120]
[340436164,1729241493821,-151.0,0.00056932,120]
[340436165,1729241493831,-412.0,0.00056986,120]
[340436166,1729241493841,-1000.0,0.00056999,120]
[340436167,1729241493851,-150.0,0.00057,120]
[340436168,1729241493863,-300.0,0.00057,120]
[340436169,1729241493872,-50000.0,0.00057,120]
[340436170,1729241493882,-151.0,0.00057041,120]
[340436171,1729241493892,-297.17,0.0005739,2]
[340436172,1729241493902,-247.06,0.0005739,2]
[340436173,1729241493913,-151.0,0.00057479,120]
[340436174,1729241493922,-4989.73,0.000575,120]
[340436175,1729241493932,-570.3525,0.00057534,120]
[340436176,1729241493942,-50000.0,0.000577,120]
[340436177,1729241493952,-5988.89954477,0.000579,120]
[340436178,1729241493962,-1000.0,0.00057999,120]
[340436179,1729241493974,-500.0,0.00058,120]
[340436180,1729241493983,-300.0,0.00058,120]
[340436181,1729241493994,-150.0,0.00058,120]
[340436182,1729241494004,-457.89118967,0.00058,120]
[340436183,1729241494014,-5000.0,0.00058,120]
[340436184,1729241494024,-177517.35556332,0.00058,120]
[340436185,1729241494034,-50000.0,0.00058,120]
[340436186,1729241494045,-50000.0,0.00058,120]
[340436187,1729241494054,-151.0,0.00058027,120]
[340436188,1729241494064,-3000.0,0.000581,90]
[340436189,1729241494074,-1556.65,0.00058313,120]
[340436190,1729241494084,-15425.18372469,0.000585,120]
[340436191,1729241494094,-151.0,0.00058575,120]
[340436192,1729241494104,-50000.0,0.000587,120]
[340436193,1729241494114,-6400.2691991,0.0005888,30]
[340436194,1729241494124,-1456.0,0.000589,30]
[340436195,1729241494134,-760.47,0.00058904,120]
[340436196,1729241494144,-1969.60479276,0.00058999,120]
[340436197,1729241494154,-1000.0,0.00058999,120]
[340436198,1729241494163,-150.0,0.00059,120]
[340436199,1729241494173,-1504069.11875389,0.00059,14]
[340436200,1729241494181,-300.0,0.00059,120]
[340436201,1729241494191,-568.44100613,0.0005909,2]
[340436202,1729241494200,-151.0,0.00059123,120]
[340436203,1729241494210,-14765.90010838,0.000594,20]
[340436204,1729241494219,-151.0,0.00059562,120]
[340436205,1729241494229,-151.0,0.00059671,120]
[340436206,1729241494238,-50000.0,0.000598,120]
[340436207,1729241494248,-1000.0,0.000599,120]
[340436208,1729241494258,-99371.30011592,0.0005998,30]
[340436209,1729241494267,-10965999.99999999,0.0005998,115]
[340436210,1729241494276,-412.0,0.00059986,120]
[340436211,1729241494286,-1000.0,0.00059999,120]
[340436212,1729241494296,-50000.0,0.0006,60]
[340436213,1729241494306,-50000.0,0.0006,70]
[340436214,1729241494316,-3104.64,0.0006,74]
[340436215,1729241494325,-2000.0,0.0006,2]
[340436216,1729241494335,-400.0,0.0006,7]
[340436217,1729241494345,-500.0,0.0006,120]
[340436218,1729241494355,-150.0,0.0006,120]
[340436219,1729241494364,-1790.0,0.0006,2]
[340436220,1729241494373,-4171.84291438,0.0006,120]
[340436221,1729241494383,-200000.0,0.0006,120]
[340436222,1729241494392,-5000.0,0.0006,120]
[340436223,1729241494401,-19609.48324,0.0006,120]
[340436224,1729241494411,-18305.91910207,0.0006,120]
[340436225,1729241494420,-400254.18403283,0.0006,120]
[340436226,1729241494430,-4995546.30601736,0.0006,120]
[340436227,1729241494440,-5000.0,0.0006,60]
[340436228,1729241494449,-13842.07712073,0.0006,120]
[340436229,1729241494459,-20000.0,0.0006,120]
[340436230,1729241494468,-910.12153633,0.0006,30]
[340436231,1729241494478,-185.18,0.0006,2]
[340436232,1729241494487,-751.16542841,0.0006,120]
[340436233,1729241494498,-10000.0,0.0006,120]
[340436234,1729241494507,-6989.91006717,0.0006,120]
[340436235,1729241494517,-303.28944424,0.0006,120]
[340436236,1729241494526,-660.20415826,0.0006,120]
[340436237,1729241494536,-26238.04792066,0.0006,60]
[340436238,1729241494545,-25523.6300314,0.0006,60]
[340436239,1729241494555,-151.0,0.00060219,120]
[340436240,1729241494564,-150.0,0.0006024,120]
[340436241,1729241494574,-950.5875,0.00060273,120]
[340436242,1729241494584,-3045.87,0.00060274,120]
[340436243,1729241494593,-600.0,0.00060274,28]
[340436244,1729241494604,-166.663,0.000605,120]
[340436245,1729241494614,-363.157,0.000605,120]
[340436246,1729241494624,-151.0,0.00060767,120]
[340436247,1729241494634,-3000.0,0.000608,90]
[340436248,1729241494644,-1556.65,0.00060897,120]
[340436249,1729241494653,-1000.0,0.00060999,120]
[340436250,1729241494663,-150.0,0.00061,120]
[340436251,1729241494672,-300.0,0.00061,120]
[340436252,1729241494682,-4813.2,0.00061206,117]
[340436253,1729241494691,-151.0,0.00061315,120]
[340436254,1729241494703,-160.26,0.0006137,2]
[340436255,1729241494816,-1140.705,0.00061643,120]
[340436256,1729241494827,-151.0,0.00061863,120]
[340436257,1729241494837,-1000.0,0.00061999,120]
[340436258,1729241494846,-300.0,0.00062,120]
[340436259,1729241494857,-150.0,0.00062,120]
[340436260,1729241494866,-5000.0,0.00062,120]
[340436261,1729241494876,-270.269859,0.00062,30]
[340436262,1729241494886,-197.11529454,0.00062,120]
[340436263,1729241494895,-300.0,0.00062,120]
[340436264,1729241494905,-151.0,0.00062082,120]
[340436265,1729241494915,-46982.26502536,0.0006212,120]
[340436266,1729241494925,-150.0,0.0006239,120]
[340436267,1729241494934,-151.0,0.00062411,120]
[340436268,1729241494944,-15024.0,0.0006245,30]
[340436269,1729241494953,-151.0,0.00062959,120]
[340436270,1729241494963,-10000.0,0.00063,30]
[340436271,1729241494976,-150.0,0.00063,120]
[340436272,1729241494985,-27640.60502673,0.00063,10]
[340436273,1729241494995,-1456.04655162,0.00063,30]
[340436274,1729241495005,-300.0,0.00063,120]
[340436275,1729241495015,-10568.90826415,0.00063,120]
[340436276,1729241495025,-1330.8225,0.00063013,120]
[340436277,1729241495035,-870.06,0.00063013,2]
[340436278,1729241495045,-870.06,0.00063013,2]
[340436279,1729241495054,-870.06,0.00063013,2]
[340436280,1729241495064,-870.06,0.00063013,2]
[340436281,1729241495073,-870.06,0.00063013,2]
[340436282,1729241495083,-870.06,0.00063013,2]
[340436283,1729241495093,-870.06,0.00063013,2]
[340436284,1729241495102,-870.06,0.00063013,2]
[340436285,1729241495115,-870.06,0.00063013,2]
[340436286,1729241495124,-870.06,0.00063013,2]
[340436287,1729241495134,-870.06,0.00063013,2]
[340436288,1729241495143,-870.06,0.00063013,2]
[340436289,1729241495154,-870.06,0.00063013,2]
[340436290,1729241495163,-870.06,0.00063013,2]
[340436291,1729241495172,-870.06,0.00063013,2]
[340436292,1729241495181,-870.06,0.00063013,2]
[340436293,1729241495190,-870.06,0.00063013,2]
[340436294,1729241495199,-870.06,0.00063013,2]
[340436295,1729241495209,-870.06,0.00063013,2]
[340436296,1729241495218,-870.06,0.00063013,2]
[340436297,1729241495227,-870.06,0.00063013,2]
[340436298,1729241495236,-870.06,0.00063013,2]
[340436299,1729241495245,-870.06,0.00063013,2]
[340436300,1729241495255,-870.20490906,0.00063013,2]
[340436301,1729241495264,-1556.65,0.00063481,120]
[340436302,1729241495275,-151.0,0.00063507,120]
[340436303,1729241495285,-3000.0,0.000636,120]
[340436304,1729241495296,-1000.0,0.00063999,120]
[340436305,1729241495306,-2000.0,0.00064,7]
[340436306,1729241495317,-300.0,0.00064,120]
[340436307,1729241495328,-150.0,0.00064,120]
[340436308,1729241495339,-20000.0,0.00064,120]
[340436309,1729241495349,-456.91208189,0.00064,120]
[340436310,1729241495360,-12016.199999,0.00064,120]
[340436311,1729241495369,-3201.619999,0.00064,120]
[340436312,1729241495378,-243.32094348,0.00064,120]
[340436313,1729241495389,-297.17,0.00064023,2]
[340436314,1729241495399,-247.06,0.00064023,2]
[340436315,1729241495410,-151.0,0.00064055,120]
[340436316,1729241495421,-1520.94,0.00064383,120]
[340436317,1729241495431,-200.0,0.000645,120]
[340436318,1729241495440,-151.0,0.00064603,120]
[340436319,1729241495450,-151.0,0.00064603,120]
[340436320,1729241495460,-14411.04742324,0.000647,120]
[340436321,1729241495470,-23692.02762851,0.0006477,120]
[340436322,1729241495480,-564.16595264,0.00064806,120]
[340436323,1729241495491,-200.0,0.00064808,120]
[340436324,1729241495501,-213.48759632,0.00064808,120]
[340436325,1729241495511,-915.92363988,0.00064809,120]
[340436326,1729241495521,-943.15731209,0.0006481,120]
[340436327,1729241495531,-937.33342085,0.00064811,120]
[340436328,1729241495541,-200.0,0.00064816,120]
[340436329,1729241495551,-1182.80188332,0.00064818,120]
[340436330,1729241495562,-200.0,0.00064821,120]
[340436331,1729241495573,-1182.80188332,0.00064823,120]
[340436332,1729241495585,-213.48759632,0.00064826,120]
[340436333,1729241495595,-200.0,0.0006483,120]
[340436334,1729241495606,-564.16595264,0.00064831,120]
[340436335,1729241495615,-1182.80188332,0.00064831,120]
[340436336,1729241495624,-200.0,0.00064831,120]
[340436337,1729241495633,-848.62355844,0.00064833,120]
[340436338,1729241495643,-943.15731209,0.00064835,120]
[340436339,1729241495652,-943.15731209,0.00064835,120]
[340436340,1729241495663,-200.0,0.00064838,120]
[340436341,1729241495671,-2234.38887542,0.00064838,120]
[340436342,1729241495683,-932.88949779,0.00064838,120]
[340436343,1729241495693,-915.92363988,0.00064841,120]
[340436344,1729241495703,-10966.22167921,0.00064847,120]
[340436345,1729241495714,-10966.22167921,0.00064847,120]
[340436346,1729241495724,-915.92363988,0.0006485,120]
[340436347,1729241495735,-200.0,0.00064852,120]
[340436348,1729241495744,-2054.44111487,0.00064854,120]
[340436349,1729241495755,-200.0,0.00064857,120]
[340436350,1729241495765,-296.9849783,0.00064857,120]
[340436351,1729241495774,-4856.15367776,0.00064859,120]
[340436352,1729241495783,-213.48759632,0.00064862,120]
[340436353,1729241495793,-200.0,0.00064862,120]
[340436354,1729241495802,-2054.44111487,0.00064866,120]
[340436355,1729241495812,-932.88949779,0.00064868,120]
[340436356,1729241495821,-296.9849783,0.00064869,120]
[340436357,1729241495830,-4856.15367776,0.00064871,120]
[340436358,1729241495839,-932.88949779,0.00064877,120]
[340436359,1729241495848,-200.0,0.00064884,120]
[340436360,1729241495859,-200.0,0.00064885,120]
[340436361,1729241495872,-985.22903184,0.00064886,120]
[340436362,1729241495881,-848.62355844,0.00064887,120]
[340436363,1729241495891,-2054.44111487,0.00064887,120]
[340436364,1729241495900,-296.9849783,0.00064887,120]
[340436365,1729241495910,-263.62083138,0.0006489,120]
[340436366,1729241495919,-2234.38887542,0.00064891,120]
[340436367,1729241495930,-943.15731209,0.00064893,120]
[340436368,1729241495940,-213.48759632,0.00064895,120]
[340436369,1729241495950,-4856.15367776,0.00064896,120]
[340436370,1729241495960,-263.62083138,0.00064897,120]
[340436371,1729241495974,-30769.51909457,0.000649,120]
[340436372,1729241495985,-985.22903184,0.00064905,120]
[340436373,1729241495994,-200.0,0.00064905,120]
[340436374,1729241496005,-200.0,0.00064908,120]
[340436375,1729241496016,-932.88949779,0.00064915,120]
[340436376,1729241496026,-2234.38887542,0.00064918,120]
[340436377,1729241496036,-200.0,0.00064923,120]
[340436378,1729241496046,-10966.22167921,0.00064929,120]
[340436379,1729241496056,-213.48759632,0.0006493,120]
[340436380,1729241496066,-985.22903184,0.00064933,120]
[340436381,1729241496076,-2234.38887542,0.00064937,120]
[340436382,1729241496085,-4856.15367776,0.00064938,120]
[340436383,1729241496094,-200.0,0.00064939,120]
[340436384,1729241496104,-564.16595264,0.0006494,120]
[340436385,1729241496115,-937.33342085,0.00064941,120]
[340436386,1729241496124,-932.88949779,0.00064942,120]
[340436387,1729241496134,-1182.80188332,0.00064943,120]
[340436388,1729241496143,-848.62355844,0.00064943,120]
[340436389,1729241496152,-2234.38887542,0.00064944,120]
[340436390,1729241496163,-564.16595264,0.00064945,120]
[340436391,1729241496173,-263.62083138,0.00064946,120]
[340436392,1729241496183,-296.9849783,0.0006495,120]
[340436393,1729241496191,-296.9849783,0.00064951,120]
[340436394,1729241496201,-200.0,0.00064958,120]
[340436395,1729241496210,-2054.44111487,0.00064959,120]
[340436396,1729241496219,-848.62355844,0.00064959,120]
[340436397,1729241496230,-263.62083138,0.00064959,120]
[340436398,1729241496239,-4856.15367776,0.00064964,120]
[340436399,1729241496249,-985.22903184,0.00064964,120]
[340436400,1729241496258,-848.62355844,0.00064966,120]
[340436401,1729241496268,-915.92363988,0.00064968,120]
[340436402,1729241496277,-1182.80188332,0.00064969,120]
[340436403,1729241496287,-200.0,0.0006497,120]
[340436404,1729241496296,-200.0,0.00064974,120]
[340436405,1729241496306,-915.92363988,0.00064975,120]
[340436406,1729241496315,-10966.22167921,0.00064978,120]
[340436407,1729241496325,-943.15731209,0.0006498,120]
[340436408,1729241496334,-564.16595264,0.00064984,120]
[340436409,1729241496344,-937.33342085,0.00064985,120]
[340436410,1729241496353,-2054.44111487,0.00064985,120]
[340436411,1729241496364,-200.0,0.00064987,120]
[340436412,1729241496374,-985.22903184,0.00064987,120]
[340436413,1729241496383,-200.0,0.00064991,120]
[340436414,1729241496393,-263.62083138,0.00064994,120]
[340436415,1729241496401,-10966.22167921,0.00064998,120]
[340436416,1729241496411,-937.33342085,0.00064998,120]
[340436417,1729241496420,-1000.0,0.00064999,120]
[340436418,1729241496429,-1200.0,0.00064999,90]
[340436419,1729241496439,-1466.0,0.00064999,90]
[340436420,1729241496449,-937.33342085,0.00065,120]
[340436421,1729241496459,-8250.0,0.00065,7]
[340436422,1729241496468,-4610.58570309,0.00065,120]
[340436423,1729241496477,-150.0,0.00065,120]
[340436424,1729241496486,-6499.3687624,0.00065,120]
[340436425,1729241496495,-200.74,0.00065,120]
[340436426,1729241496505,-20000.0,0.00065,120]
[340436427,1729241496514,-2008.0,0.00065,60]
[340436428,1729241496523,-958.50037299,0.00065,120]
[340436429,1729241496532,-300.0,0.00065,120]
[340436430,1729241496542,-10000.0,0.00065,120]
[340436431,1729241496551,-150.0,0.0006508,120]
[340436432,1729241496560,-151.0,0.00065151,120]
[340436433,1729241496569,-3086.34516263,0.0006528,120]
[340436434,1729241496579,-2893.0,0.000654,120]
[340436435,1729241496588,-5077.72278363,0.000655,120]
[340436436,1729241496597,-151.0,0.00065699,120]
[340436437,1729241496607,-1711.0575,0.00065753,120]
[340436438,1729241496616,-181.58287609,0.00065753,120]
[340436439,1729241496625,-600.0,0.00065753,120]
[340436440,1729241496634,-243.78578527,0.000658,120]
[340436441,1729241496644,-412.0,0.00065866,120]
[340436442,1729241496653,-1134.38097024,0.0006589,90]
[340436443,1729241496664,-2646.7034855,0.000659,120]
[340436444,1729241496674,-3150.78,0.000659,120]
[340436445,1729241496684,-30000.000001,0.000659,120]
[340436446,1729241496693,-1000.0,0.00065999,120]
[340436447,1729241496702,-108400978.05134666,0.00066,60]
[340436448,1729241496721,-29192.49211688,0.00066,60]
[340436449,1729241496732,-71453.10222775,0.00066,60]
[340436450,1729241496744,-300.0,0.00066,60]
[340436451,1729241496755,-1019.655,0.00066,60]
[340436452,1729241530989,550.0,0.0001,2]
[340436454,1729242107917,-300.0,0.00010899,2]
[340436455,1729242107941,-24402.7291,0.000109,2]
[340436456,1729242107965,-297.2709,0.000109,2]
[340436457,1729242108929,-702.7291,0.000109,2]
[340436458,1729242108953,-198.08,0.00010959,2]
[340436459,1729242108976,-524.25018531,0.00010999,2]
[340436460,1729242109000,-500.0,0.00010999,2]
[340436461,1729242109024,-992.3,0.00010999,2]
[340436462,1729242109048,-992.3,0.00010999,2]
[340436463,1729242109071,-992.3,0.00010999,2]
[340436464,1729242109094,-992.3,0.00010999,2]
[340436465,1729242109119,-992.3,0.00010999,2]
[340436466,1729242109144,-992.3,0.00010999,2]
[340436467,1729242109170,-992.3,0.00010999,2]
[340436468,1729242109193,-992.3,0.00010999,2]
[340436469,1729242109217,-992.3,0.00010999,2]
[340436470,1729242109240,-992.3,0.00010999,2]
[340436471,1729242109263,-992.3,0.00010999,2]
[340436472,1729242109286,-992.3,0.00010999,2]
[340436473,1729242109309,-992.3,0.00010999,2]
[340436474,1729242109333,-992.3,0.00010999,2]
[340436475,1729242109355,-992.3,0.00010999,2]
[340436476,1729242109379,-992.3,0.00010999,2]
[340436477,1729242109403,-992.3,0.00010999,2]
[340436478,1729242109429,-992.3,0.00010999,2]
[340436479,1729242109453,-992.3,0.00010999,2]
[340436480,1729242109477,-992.3,0.00010999,2]
[340436481,1729242109626,-992.3,0.00010999,2]
[340436482,1729242109650,-992.3,0.00010999,2]
[340436483,1729242109674,-992.3,0.00010999,2]
[340436484,1729242109697,-252.04071469,0.00010999,2]
[340436485,1729242110159,-740.39928531,0.00010999,2]
[340436486,1729242110184,-500.0,0.00010999,2]
[340436487,1729242110208,-500.0,0.00010999,2]
[340436488,1729242110232,-500.0,0.00010999,2]
[340436489,1729242110256,-500.0,0.00010999,2]
[340436490,1729242110280,-500.0,0.00010999,2]
[340436491,1729242110303,-500.0,0.00010999,2]
[340436492,1729242110326,-500.0,0.00010999,2]
[340436493,1729242110349,-500.0,0.00010999,2]
[340436494,1729242110373,-500.0,0.00010999,2]
[340436495,1729242110398,-500.0,0.00010999,2]
[340436496,1729242110424,-175.66,0.00010999,2]
[340436497,1729242110447,-500.0,0.00010999,2]
[340436498,1729242110471,-500.0,0.00010999,2]
[340436499,1729242110493,-500.0,0.00010999,2]
[340436500,1729242110517,-500.0,0.00010999,2]
[340436501,1729242110541,-500.0,0.00010999,2]
[340436502,1729242110564,-500.0,0.00010999,2]
[340436503,1729242110588,-500.0,0.00010999,2]
[340436504,1729242110611,-500.0,0.00010999,2]
[340436505,1729242110637,-540.70084697,0.00010999,2]
[340436506,1729242110659,-500.0,0.00010999,2]
[340436507,1729242110687,-500.0,0.00010999,2]
[340436508,1729242110711,-500.0,0.00010999,2]
[340436509,1729242110733,-500.0,0.00010999,2]
[340436510,1729242110756,-500.0,0.00010999,2]
[340436511,1729242110779,-263.97155703,0.00010999,2]
[340436512,1729242110802,-542.39423322,0.00010999,2]
[340436513,1729242110825,-500.0,0.00010999,2]
[340436514,1729242110847,-500.0,0.00010999,2]
[340436515,1729242110871,-500.0,0.00010999,2]
[340436516,1729242110896,-500.0,0.00010999,2]
[340436517,1729242110920,-444.33762297,0.00010999,2]
[340436518,1729242110942,-500.0,0.00010999,2]
[340436519,1729242110966,-510.31741824,0.00010999,2]
[340436520,1729242110989,-500.0,0.00010999,2]
[340436521,1729242111012,-500.0,0.00010999,2]
[340436522,1729242111036,-500.0,0.00010999,2]
[340436523,1729242111059,-500.0,0.00010999,2]
[340436524,1729242111082,-500.0,0.00010999,2]
[340436525,1729242111105,-500.0,0.00010999,2]
[340436526,1729242111129,-500.0,0.00010999,2]
[340436527,1729242111152,-250.0,0.00011176,2]
[340436528,1729242111175,-420.0,0.00011978,2]
[340436529,1729242111199,-587.0,0.00013164,2]
[340436530,1729242111222,-200.0,0.00013699,2]
[340436531,1729242111245,-150.0,0.00014176,2]
[340436532,1729242111269,-823.0,0.00014467,2]
[340436533,1729242111292,-500.0,0.00015211,2]
[340436534,1729242111315,-1352.21903626,0.000156,2]
[340436535,1729242112191,-160.29096374,0.000156,2]
[340436536,1729242112214,-285.25,0.000156,2]
[340436537,1729242112238,-1152.0,0.00015899,2]
[340436538,1729242112261,-1613.0,0.00017473,2]
[340436539,1729242112285,-416.0,0.000184,2]
[340436540,1729242112312,-2258.0,0.00019203,2]
[340436541,1729242112338,-4878.59589994,0.0002,2]
[340436542,1729242112362,-3162.0,0.00021104,2]
[340436543,1729242112388,-500.0,0.00021917,2]
[340436544,1729242112415,-500.0,0.00021917,2]
[340436545,1729242112439,-500.0,0.00021917,2]
[340436546,1729242112466,-500.0,0.00021917,2]
[340436547,1729242112491,-262.84440573,0.00021917,2]
[340436548,1729242112516,-5800.0,0.00022482,2]
[340436549,1729242112539,-3012.01873059,0.00022491,2]
[340436550,1729242143905,-150.0,0.00010824,2]
[340436551,1729242143932,-500.0,0.00010999,2]
[340436552,1729242143959,-510.79561648,0.00010999,2]
[340436553,1729242143984,-472.01527197,0.00010999,2]
[340436554,1729242144011,-300.0,0.00019725,2]
[340436555,1729242147041,-420.0,0.00021484,2]
[340436556,1729242147068,-2787.98126941,0.00022491,2]
[340436557,1729242147093,-5800.0,0.00022499,2]
[340436558,1729242147119,-587.0,0.00023401,2]
[340436559,1729242147145,-155.0,0.000238,2]
[340436560,1729242150172,-823.0,0.00025488,2]
[340436561,1729242150202,-166.664,0.00026328,13]
[340436562,1729242150229,-251.65,0.00026328,13]
[340436563,1729242150256,-2221.27,0.00027397,10]
[340436564,1729242150283,-3000.0,0.000277,2]
[340436565,1729242150310,-1152.0,0.00027761,2]
[340436566,1729242151789,500.0,0.00010999,2]
[340436567,1729242152075,500.0,0.00010999,2]
[340436568,1729242152831,500.0,0.00010999,2]
[340436569,1729242153354,500.0,0.00010999,2]
[340436570,1729242153664,500.0,0.00010999,2]
[340436571,1729242154074,500.0,0.00010999,2]
[340436572,1729242154383,500.0,0.00010999,2]
[340436573,1729242154623,-1000.0,0.00030041,2]
[340436574,1729242154649,-677.0,0.00030237,2]